bitfinex/quotes_ETHUSD_20250519
["timestamp","ask_amount","ask_price","bid_price","bid_amount"]
[1747662268071,0.55,2428.4,2428.0,4.11858753]
[1747662268288,0.55,2428.4,2428.1,4.11835818]
[1747662268490,1.1416,2428.8,2428.4,4.11785086]
[1747662268789,0.55,2428.6,2428.2,4.11815097]
[1747662268976,4.66800951,2428.4,2427.9,14.91871062]
[1747662269182,0.55,2428.4,2428.0,4.11861415]
[1747662269377,0.55,2428.4,2427.7,1.5804]
[1747662269378,0.55,2428.1,2427.7,1.5804]
[1747662269583,0.55,2428.1,2427.7,4.11904103]
[1747662269791,4.66845151,2428.1,2427.6,4.11914258]
[1747662269970,4.11870629,2428.0,2427.5,4.1193826]
[1747662270179,0.55,2428.4,2427.6,4.11929477]
[1747662270510,0.55,2428.4,2428.1,4.11837088]
[1747662270698,0.55,2428.2,2427.8,4.11889026]
[1747662270867,0.55,2428.2,2427.7,4.11905492]
[1747662271218,0.55,2428.0,2427.7,4.11908867]
[1747662271417,11.9676,2428.5,2427.8,0.35270504]
[1747662271619,0.55,2428.4,2427.8,0.35270504]
[1747662271818,0.55,2428.4,2428.0,4.11845184]
[1747662272022,4.66801294,2428.4,2428.1,0.12864409]
[1747662272318,4.66827691,2428.2,2428.1,0.12864409]
[1747662272482,4.66827691,2428.2,2427.5,4.11930302]
[1747662272483,0.55,2428.1,2427.6,4.11926129]
[1747662272883,0.55,2428.1,2427.7,0.12865917]
[1747662273110,10.826,2428.5,2427.7,0.12865917]
[1747662273314,10.826,2428.5,2428.1,4.11840782]
[1747662273485,10.826,2428.5,2428.2,0.12864891]
[1747662273682,10.826,2428.5,2428.2,4.24685582]
[1747662273886,1.1416,2428.9,2428.3,4.11810731]
[1747662274121,0.05147224,2429.0,2428.2,0.12864891]
[1747662274291,4.11720659,2428.9,2428.4,0.12864891]
[1747662274620,0.55,2428.8,2428.5,0.1286253]
[1747662274790,4.66759861,2428.6,2428.5,0.1286253]
[1747662275318,0.55,2428.6,2428.5,0.1286253]
[1747662276222,5.86067258,2428.6,2428.5,0.1286253]
[1747662276524,0.55,2428.2,2427.8,4.1189374]
[1747662276695,0.55,2428.2,2427.9,0.22499927]
[1747662276898,4.11796697,2428.4,2428.0,0.12864638]
[1747662277210,0.55,2428.2,2428.0,0.12864638]
[1747662277389,0.55,2428.2,2428.1,0.12864638]
[1747662277789,0.55,2428.3,2428.1,0.12864638]
[1747662278121,0.55,2428.0,2427.4,22.21172314]
[1747662278309,4.66896845,2427.8,2427.4,11.42172314]
[1747662278685,4.66888746,2427.9,2427.5,0.3538571]
[1747662279019,4.11905074,2427.8,2427.6,0.1286657]
[1747662279184,0.55,2427.7,2427.6,0.1286657]
[1747662279390,4.66912509,2427.7,2427.6,0.35400731]
[1747662279720,0.55,2427.8,2427.6,0.35400731]
[1747662280019,10.798,2428.0,2427.7,0.22534161]
[1747662280221,10.798,2428.3,2427.7,0.35400731]
[1747662280431,1.1416,2428.7,2428.2,4.11812122]
[1747662280726,4.11717998,2428.9,2428.3,4.24667581]
[1747662280925,1.1416,2429.1,2428.3,0.12865451]
[1747662281085,1.1416,2429.5,2428.9,4.11701347]
[1747662281289,10.798,2429.7,2429.0,0.12865451]
[1747662281492,0.05145668,2429.6,2428.8,10.786]
[1747662281692,4.11632744,2429.4,2428.8,14.90323245]
[1747662282431,4.11616527,2429.5,2428.9,4.11708326]
[1747662282618,5.18942517,2430.1,2428.9,4.11708326]
[1747662282619,0.05,2429.9,2429.1,1.5666]
[1747662282817,0.05,2429.9,2429.3,4.11641213]
[1747662283021,0.05,2429.9,2429.7,4.11562738]
[1747662283220,0.05,2429.9,2429.4,10.82515378]
[1747662283221,0.05,2429.9,2429.6,4.11582929]
[1747662283398,0.05,2429.9,2429.7,4.11566488]
[1747662283718,0.05,2429.9,2429.8,4.11556506]
[1747662283916,0.05,2429.9,2429.8,5.64156506]
[1747662284319,0.05,2429.9,2429.8,1.526]
[1747662285712,0.55,2429.8,2429.3,12.3985]
[1747662285912,0.55,2429.8,2429.3,16.51483546]
[1747662286340,0.05,2429.9,2429.3,14.76703205]
[1747662286539,0.05,2429.9,2429.6,4.11579424]
[1747662286731,0.05,2429.9,2429.5,4.11592831]
[1747662287242,0.05,2429.9,2429.3,14.76703205]
[1747662287463,0.05,2429.9,2429.8,4.11556506]
[1747662288146,0.05,2429.9,2429.7,4.11566021]
[1747662288347,0.05,2429.9,2429.3,1.6205]
[1747662288511,0.05,2429.9,2429.3,16.50976013]
[1747662288718,0.05,2429.9,2428.9,5.8885374]
[1747662288719,0.55,2429.8,2428.9,5.8885374]
[1747662289025,4.11586404,2429.7,2429.0,4.11692054]
[1747662289217,4.11591273,2429.6,2429.0,4.11684243]
[1747662289423,0.55,2429.8,2429.0,4.1169114]
[1747662289618,4.66570692,2429.8,2429.1,4.11664006]
[1747662289846,4.16545223,2429.9,2429.4,4.11619762]
[1747662289847,0.05,2429.9,2429.4,4.11619762]
[1747662290150,0.05,2429.9,2429.6,5.68679842]
[1747662290327,0.05,2429.9,2429.6,1.571]
[1747662291221,0.55,2429.8,2429.3,14.88539027]
[1747662291610,0.05,2429.9,2429.5,4.11597781]
[1747662291809,0.05,2429.9,2429.5,1.48849778]
[1747662292066,0.05,2429.9,2429.8,5.77436506]
[1747662292208,0.05,2429.9,2429.8,24.56736506]
[1747662293141,0.05,2429.9,2429.8,12.4518]
[1747662293340,0.05,2429.9,2429.8,16.56736506]
[1747662294064,0.05,2429.9,2429.8,18.63567387]
[1747662294257,0.05,2429.9,2429.8,26.63567387]
[1747662295260,0.05,2429.9,2429.8,26.76726535]
[1747662295865,0.05,2430.9,2429.8,26.76726535]
[1747662295866,0.05,2430.9,2430.1,1.5588]
[1747662296031,0.05,2430.9,2430.8,4.11387197]
[1747662296253,0.05,2430.9,2430.8,14.87387197]
[1747662296586,0.05,2430.9,2430.8,12.4206]
[1747662296893,0.05,2430.9,2430.8,4.11387197]
[1747662297073,0.05,2430.9,2430.8,4.75302269]
[1747662297490,0.05,2430.9,2430.8,12.75302269]
[1747662297679,0.05,2430.9,2430.8,14.41362269]
[1747662298053,0.05,2431.9,2431.7,1.6606]
[1747662298257,0.05,2431.9,2431.8,10.756]
[1747662298713,0.05,2431.9,2431.5,4.11255979]
[1747662298864,0.05,2431.9,2431.6,14.86749905]
[1747662299217,0.05,2431.9,2431.8,5.63938027]
[1747662299501,0.05,2431.9,2431.8,13.68049015]
[1747662299656,0.05,2431.9,2431.8,13.63938027]
[1747662300068,0.05,2431.9,2431.8,5.63938027]
[1747662301152,0.05,2431.9,2431.8,27.13838027]
[1747662301361,0.05,2431.9,2431.3,4.11291032]
[1747662301562,0.05,2431.9,2431.6,4.11250531]
[1747662301777,0.05,2431.9,2431.8,4.11218027]
[1747662302171,0.05,2431.9,2431.3,1.5334]
[1747662302372,0.05,2431.9,2431.8,4.11218027]
[1747662302876,0.05,2431.9,2431.8,24.39358027]
[1747662303076,0.05,2432.9,2432.8,4.11048997]
[1747662303280,0.05,2432.9,2432.8,25.64658651]
[1747662303475,0.05,2432.9,2432.8,25.60548997]
[1747662303676,0.05,2432.9,2432.8,36.57710192]
[1747662303903,4.10755376,2434.6,2433.8,4.10880105]
[1747662304113,4.50502148,2433.9,2433.6,1.5923]
[1747662304272,0.39631025,2433.9,2433.5,10.744]
[1747662304473,0.34563006,2433.8,2433.5,10.744]
[1747662305016,0.34563006,2433.8,2433.5,14.85324564]
[1747662305202,0.34563006,2433.8,2433.6,4.10907251]
[1747662305504,0.34563006,2433.8,2433.7,4.10896988]
[1747662306300,0.34563006,2433.8,2433.7,7.59747412]
[1747662306466,0.34563006,2433.8,2433.7,30.09747412]
[1747662306678,0.05,2434.9,2434.7,4.1071788]
[1747662306879,0.05,2434.9,2434.8,10.7780663]
[1747662307085,0.05,2434.9,2434.8,14.84411352]
[1747662307292,0.05,2434.9,2434.8,10.737]
[1747662307608,0.05,2434.9,2434.8,14.84411352]
[1747662307806,0.05,2435.9,2435.5,4.10590324]
[1747662308015,0.05,2435.9,2435.4,10.735]
[1747662308576,0.05,2435.9,2435.5,4.10580925]
[1747662308784,0.05,2435.9,2435.6,1.5479]
[1747662309207,0.05,2435.9,2434.9,1.5479]
[1747662309627,0.05,2435.9,2435.6,0.5]
[1747662309809,4.10542737,2435.8,2435.1,4.10653807]
[1747662309987,0.05,2435.9,2435.2,4.10641112]
[1747662310181,0.05,2435.9,2435.3,0.41064111]
[1747662310415,0.05,2435.9,2435.8,4.10542737]
[1747662311311,1.2415,2437.6,2436.0,4.1050753]
[1747662311621,4.10352476,2437.0,2436.3,4.10445388]
[1747662311823,4.10453166,2436.4,2435.8,9.577]
[1747662312008,0.05130463,2436.3,2435.3,1.6061]
[1747662312209,0.55,2436.5,2435.5,4.10590748]
[1747662312410,4.1047533,2436.2,2435.4,4.10605803]
[1747662312598,4.10519051,2436.0,2435.4,4.10605803]
[1747662312786,4.10546844,2435.8,2435.2,28.468]
[1747662312989,1.2415,2436.0,2435.2,28.468]
[1747662312990,1.2415,2436.0,2435.3,4.10612399]
[1747662313187,1.2415,2436.4,2435.4,8.0]
[1747662313387,0.05,2436.9,2436.6,4.10395707]
[1747662313698,0.05,2436.9,2436.7,4.14483698]
[1747662313905,0.05,2436.9,2436.7,10.735]
[1747662314225,0.05,2436.9,2436.8,4.10374261]
[1747662314422,0.05,2436.9,2436.8,5.99800684]
[1747662314625,0.05,2436.9,2436.8,15.54170684]
[1747662315128,0.05,2437.9,2436.9,8.0]
[1747662315302,0.05,2437.9,2437.8,5.74115923]
[1747662315625,0.05,2437.9,2437.4,1.51]
[1747662315837,0.05,2437.9,2436.9,1.51]
[1747662316040,0.10127112,2437.9,2437.1,4.10321199]
[1747662316186,0.05,2437.9,2437.4,4.10271054]
[1747662316399,0.05,2437.9,2437.4,4.10262279]
[1747662316603,0.05,2437.9,2437.5,4.10254636]
[1747662316858,0.05,2437.9,2437.8,4.10205923]
[1747662317042,0.05,2437.9,2437.8,5.69086955]
[1747662317202,0.05,2437.9,2437.8,5.64985923]
[1747662317700,0.05,2437.9,2437.8,1.5478]
[1747662317938,0.05,2437.9,2437.3,19.3991]
[1747662317939,4.10219205,2437.8,2437.3,19.3991]
[1747662318143,0.05,2437.9,2437.4,10.707]
[1747662318317,0.05,2437.9,2437.4,14.80961973]
[1747662318637,0.05,2437.9,2437.7,4.10220146]
[1747662318842,0.05,2437.9,2437.8,4.10205923]
[1747662319343,0.05,2437.9,2437.8,10.706]
[1747662319505,0.05,2437.9,2437.8,14.80805923]
[1747662320122,0.05,2437.9,2437.8,24.34455923]
[1747662320323,0.05,2438.9,2438.7,4.10046484]
[1747662320520,0.05,2438.9,2438.2,17.727]
[1747662320733,4.10071352,2438.6,2437.8,27.06947544]
[1747662321006,4.10147618,2438.2,2437.8,21.431]
[1747662321211,1.2415,2438.7,2437.8,21.431]
[1747662321519,4.10186595,2438.0,2437.4,17.727]
[1747662321724,5.34344023,2437.9,2437.2,4.1030345]
[1747662321922,1.2415,2438.2,2437.1,10.7]
[1747662322222,5.34249973,2438.5,2437.2,1.61984998]
[1747662322425,4.10214093,2437.8,2437.2,14.80196926]
[1747662322735,4.10240613,2437.6,2437.1,21.423]
[1747662322934,4.10253752,2437.6,2437.1,21.423]
[1747662323255,11.9655,2438.3,2437.4,4.10273241]
[1747662323429,11.41693652,2438.9,2438.1,4.10143755]
[1747662323430,1.2415,2438.6,2438.1,4.10143755]
[1747662323613,1.2915,2438.9,2438.1,10.698]
[1747662323942,5.39172517,2438.9,2438.1,10.696]
[1747662324109,1.2915,2438.9,2438.1,10.696]
[1747662324306,1.2415,2438.3,2436.7,19.264]
[1747662324553,1.2415,2438.3,2437.3,4.10288737]
[1747662324710,1.2415,2438.6,2438.3,4.10111908]
[1747662324911,4.10052203,2438.8,2438.2,14.82431068]
[1747662325146,4.10065529,2438.7,2438.2,14.82438392]
[1747662325349,1.2915,2438.9,2438.4,4.10104986]
[1747662325546,5.39171619,2438.9,2438.4,4.10104986]
[1747662325747,5.39171619,2438.9,2438.3,0.04100295]
[1747662325748,1.2915,2438.9,2438.3,0.04100295]
[1747662326046,0.05,2438.9,2438.6,4.10062353]
[1747662326232,0.05,2438.9,2438.6,10.694]
[1747662326433,4.15021421,2438.9,2438.6,10.694]
[1747662326734,0.05,2438.9,2438.6,10.694]
[1747662327439,4.10048393,2438.8,2438.6,10.72]
[1747662327639,4.15024908,2438.9,2438.6,10.72]
[1747662327814,4.10047445,2438.8,2438.5,10.72]
[1747662328014,4.15035367,2438.9,2438.5,10.72]
[1747662328247,0.05,2438.9,2438.5,10.72]
[1747662328543,0.05,2438.9,2438.6,4.10063553]
[1747662328746,0.05,2438.9,2438.7,4.10042092]
[1747662328931,4.15020911,2438.9,2438.2,4.10136263]
[1747662329133,4.15020911,2438.9,2438.3,25.5110557]
[1747662329337,4.15020911,2438.9,2438.4,4.10097424]
[1747662329538,0.05,2438.9,2438.4,10.72]
[1747662329710,0.05,2438.9,2438.4,12.8609]
[1747662330044,0.05,2438.9,2438.8,4.10037723]
[1747662331049,10.686,2440.3,2438.8,4.10037723]
[1747662331050,5.33920275,2440.4,2439.4,5.69206869]
[1747662331228,4.0978647,2440.3,2439.4,27.06406869]
[1747662331640,1.2415,2439.7,2439.0,21.371]
[1747662331838,7.26657489,2440.5,2439.0,21.371]
[1747662331839,1.2415,2440.1,2439.4,4.09936869]
[1747662332256,1.2415,2440.4,2439.4,18.59936869]
[1747662332458,1.2415,2440.4,2439.4,26.59936869]
[1747662332763,4.09728047,2440.7,2439.4,47.96336869]
[1747662332932,4.09736941,2440.6,2439.4,47.96336869]
[1747662333127,1.2415,2440.8,2439.4,47.96336869]
[1747662333465,4.097428,2440.6,2440.0,4.09826456]
[1747662333671,5.33857394,2440.8,2440.1,21.363]
[1747662333968,5.33860167,2440.8,2440.2,4.09801854]
[1747662334330,5.33810708,2441.1,2440.2,2.79798803]
[1747662334539,4.09668168,2441.0,2440.1,21.363]
[1747662334737,0.05121432,2440.9,2439.9,17.706]
[1747662334966,0.55,2440.5,2439.5,21.49607922]
[1747662335167,4.09903262,2439.6,2439.5,0.13407922]
[1747662335530,4.64903262,2439.6,2439.5,0.13407922]
[1747662335931,5.94177792,2439.6,2439.5,0.13407922]
[1747662336384,5.89053262,2439.6,2439.5,0.13407922]
[1747662336668,4.0997551,2439.2,2438.8,10.681]
[1747662336869,4.09953675,2439.3,2438.8,10.681]
[1747662337181,4.09987342,2439.1,2438.8,10.681]
[1747662337463,4.09920065,2439.5,2438.8,10.681]
[1747662337634,0.55,2439.5,2438.1,4.10155448]
[1747662337834,0.55,2439.5,2438.2,25.45627425]
[1747662337835,4.10039291,2438.8,2438.2,25.45627425]
[1747662338064,4.10021563,2438.9,2438.2,25.45627425]
[1747662338065,1.2415,2439.4,2438.7,4.10044307]
[1747662338265,1.2415,2439.4,2438.9,4.10019647]
[1747662338471,4.09977451,2439.2,2438.8,21.355]
[1747662338774,4.09953675,2439.3,2438.8,21.355]
[1747662338932,4.0999815,2439.1,2438.8,21.355]
[1747662339134,1.2415,2439.4,2438.8,21.355]
[1747662339333,4.09974796,2439.2,2438.8,21.355]
[1747662339641,1.2415,2439.1,2438.2,0.13407922]
[1747662339843,1.2415,2439.1,2438.2,4.23535939]
[1747662340041,1.2415,2439.1,2438.2,5.7449459]
[1747662340354,1.2415,2439.1,2438.3,0.04100101]
[1747662340560,1.2415,2439.1,2438.6,4.10071352]
[1747662340873,1.2415,2439.1,2438.8,4.10033728]
[1747662341172,1.2415,2439.1,2438.7,10.681]
[1747662341335,1.2415,2439.1,2438.8,4.10028564]
[1747662341534,1.2415,2439.1,2438.8,0.13114667]
[1747662341886,7.26657489,2440.1,2438.8,0.13114667]
[1747662342038,4.09911553,2439.6,2438.9,10.681]
[1747662342238,4.09911553,2439.6,2439.0,4.0999482]
[1747662342481,4.09970482,2439.2,2439.1,10.681]
[1747662342773,4.09970482,2439.2,2439.1,0.13114667]
[1747662343484,5.34105643,2439.3,2439.1,0.13114667]
[1747662343788,5.3411194,2439.3,2439.1,0.13114667]
[1747662344071,4.09878172,2439.8,2439.1,0.13114667]
[1747662344377,1.2415,2439.7,2439.2,0.172139]
[1747662344685,5.33978401,2440.1,2439.5,4.09904441]
[1747662344837,5.33978401,2440.1,2439.6,10.681]
[1747662345037,5.33978401,2440.1,2439.6,14.78002547]
[1747662345335,4.09836065,2440.0,2439.7,0.13114667]
[1747662345547,1.2415,2440.1,2439.7,10.81214667]
[1747662345937,5.33970405,2440.1,2439.7,10.81214667]
[1747662346137,5.33975968,2440.1,2439.7,10.81214667]
[1747662346378,4.09856413,2439.9,2439.7,0.13114667]
[1747662346598,1.2415,2440.1,2439.7,0.13114667]
[1747662346852,0.3105581,2440.7,2439.7,0.13114667]
[1747662346853,1.2415,2441.3,2440.4,4.0976889]
[1747662347077,1.2415,2441.3,2440.5,10.681]
[1747662347477,4.09681639,2441.0,2440.6,10.681]
[1747662347744,4.09688819,2440.9,2440.6,10.681]
[1747662347948,1.2415,2441.3,2440.3,17.703]
[1747662348267,5.33851737,2440.8,2440.7,0.13114667]
[1747662348489,5.88851737,2440.8,2440.7,0.13114667]
[1747662349148,13.93974125,2440.8,2440.7,0.13114667]
[1747662349349,5.88952475,2440.2,2440.1,0.13407922]
[1747662349576,5.94075756,2440.2,2440.1,0.13407922]
[1747662350149,5.88952475,2440.2,2440.1,0.13407922]
[1747662350856,5.9407617,2440.2,2440.1,0.13407922]
[1747662351180,5.88952475,2440.2,2440.1,0.13407922]
[1747662351775,5.33952475,2440.2,2440.1,0.13407922]
[1747662351978,1.2415,2440.6,2440.1,0.13407922]
[1747662352295,4.0970117,2440.9,2440.1,1.62531836]
[1747662352491,4.09718552,2440.7,2440.1,1.49123914]
[1747662352689,4.09668168,2441.0,2440.1,1.49123914]
[1747662352894,0.05121619,2440.9,2439.7,19.49847922]
[1747662353192,4.09786459,2440.3,2440.0,10.658]
[1747662353692,5.33817073,2441.1,2439.7,23.59721859]
[1747662353693,0.05122416,2440.6,2439.7,19.49847922]
[1747662353867,4.09829201,2440.1,2439.7,39.17207922]
[1747662354071,4.09869661,2439.8,2439.7,0.13407922]
[1747662354271,4.09865003,2439.9,2439.7,0.26517863]
[1747662354469,4.64869661,2439.8,2439.7,0.26517863]
[1747662355502,4.09869661,2439.8,2439.7,0.26517863]
[1747662355699,4.64869661,2439.8,2439.7,0.26517863]
[1747662356001,4.64869661,2439.8,2439.7,0.13109941]
[1747662356002,4.69993288,2439.8,2439.7,0.13109941]
[1747662356156,0.55,2440.2,2439.7,0.13109941]
[1747662356365,4.64869661,2439.8,2439.7,0.13109941]
[1747662356867,1.2415,2440.4,2439.7,0.13109941]
[1747662357169,12.31123505,2440.5,2439.7,0.13109941]
[1747662357170,4.64869661,2439.8,2439.7,0.13109941]
[1747662357382,5.94144178,2439.8,2439.7,0.13109941]
[1747662357620,4.69994178,2439.8,2439.7,0.13109941]
[1747662357775,4.09869661,2439.8,2439.7,0.13109941]
[1747662358103,4.09844226,2440.0,2439.7,0.13109941]
[1747662358403,0.30812066,2441.2,2439.8,1.5721]
[1747662358580,4.097699,2440.4,2439.9,4.09844532]
[1747662358918,4.0969849,2440.9,2440.4,4.09765695]
[1747662359076,4.09709499,2440.8,2440.5,10.651]
[1747662359276,4.09603599,2441.4,2440.7,4.09718523]
[1747662359493,0.31170378,2442.4,2440.9,1.5449]
[1747662359689,7.26657489,2442.5,2441.0,1.22239]
[1747662359888,4.09547404,2441.8,2441.1,21.327]
[1747662360113,4.09515365,2442.0,2441.5,0.13407922]
[1747662360316,4.09561655,2441.7,2441.5,0.13407922]
[1747662360613,1.2415,2442.2,2441.5,0.13407922]
[1747662360785,4.09517807,2441.9,2441.5,0.13407922]
[1747662360986,4.09555412,2441.7,2441.5,0.13407922]
[1747662361189,5.38836765,2441.6,2441.5,0.13407922]
[1747662361411,0.1,2440.4,2438.1,0.4405949]
[1747662361616,4.314,2439.4,2438.9,0.02624942]
[1747662361799,0.30838911,2440.2,2438.9,0.02624942]
[1747662362001,7.26657489,2440.5,2439.0,1.6268]
[1747662362249,15.13940964,2441.2,2439.0,1.6268]
[1747662362250,4.09744224,2440.6,2439.1,0.04098991]
[1747662362413,4.09744224,2440.6,2439.1,0.13112352]
[1747662362414,7.26657489,2440.0,2439.1,0.13112352]
[1747662362616,7.26657489,2439.8,2439.1,0.13112352]
[1747662362812,4.09970482,2439.2,2439.1,0.13112352]
[1747662363020,0.05124577,2439.2,2439.1,0.13112352]
[1747662363221,4.10060123,2438.7,2438.5,1.6317]
[1747662363551,5.34041425,2439.7,2438.3,11.426]
[1747662363552,4.10037111,2438.9,2438.3,11.426]
[1747662363706,1.2415,2439.0,2438.3,11.426]
[1747662363902,4.1003978,2438.8,2438.3,11.426]
[1747662364102,4.1003978,2438.8,2438.1,24.4015]
[1747662364302,4.10020913,2438.9,2438.4,0.13117532]
[1747662364537,4.10023747,2438.9,2438.4,0.13117532]
[1747662364742,4.10088168,2438.5,2438.4,0.13117532]
[1747662364957,5.34238168,2438.5,2438.4,0.13117532]
[1747662365099,5.34250479,2438.5,2437.4,1.5958]
[1747662365299,5.34250479,2438.5,2437.4,26.28818]
[1747662365500,4.10183628,2438.0,2437.4,26.28818]
[1747662365856,4.10185972,2438.0,2437.4,26.28818]
[1747662366147,4.10161584,2438.1,2437.4,26.28818]
[1747662366349,5.34242436,2438.5,2437.4,26.28818]
[1747662366350,4.10121806,2438.3,2437.4,26.28818]
[1747662366504,4.1017269,2438.0,2437.4,24.3588]
[1747662366910,4.10205954,2437.8,2437.4,24.3588]
[1747662367227,4.10205954,2437.8,2437.1,0.05]
[1747662367228,8.50807489,2437.8,2437.1,0.05]
[1747662367427,4.10260868,2437.5,2437.1,0.05]
[1747662367628,4.10299887,2437.3,2437.1,0.05]
[1747662367941,4.10306909,2437.2,2437.1,0.05]
[1747662368251,16.74456909,2437.2,2437.1,0.05]
[1747662368467,4.10198067,2437.9,2437.1,0.05]
[1747662368744,1.2415,2437.8,2437.1,0.05]
[1747662369048,1.2415,2438.1,2437.1,0.05]
[1747662369558,5.34309113,2438.1,2437.2,4.10296524]
[1747662369760,4.10192049,2437.9,2437.2,0.97658381]
[1747662369967,4.10306909,2437.2,2437.1,0.05]
[1747662370108,4.10291217,2437.3,2437.1,0.05]
[1747662370309,7.26657489,2438.0,2437.1,0.05]
[1747662370557,7.26657489,2437.6,2437.1,0.05]
[1747662370755,4.10294041,2437.3,2437.1,0.05]
[1747662371249,4.10306909,2437.2,2437.1,0.05]
[1747662371478,11.91964398,2437.2,2437.1,0.05]
[1747662372037,23.33464398,2437.2,2437.1,0.05]
[1747662372235,4.1043401,2436.5,2436.2,0.66666667]
[1747662372551,1.7915,2436.7,2436.2,0.66666667]
[1747662372552,4.10447236,2436.4,2436.2,0.66666667]
[1747662372768,4.65424789,2436.5,2436.2,0.66666667]
[1747662372969,1.7915,2436.7,2436.2,0.66666667]
[1747662372970,4.10458482,2436.3,2436.2,0.66666667]
[1747662373168,4.10427492,2436.5,2436.2,0.66666667]
[1747662373385,7.26657489,2437.3,2436.2,0.66666667]
[1747662373568,4.10338838,2437.1,2436.2,4.77133535]
[1747662373770,0.55,2437.1,2436.2,12.51180021]
[1747662373969,4.10420265,2436.6,2436.2,12.02966667]
[1747662374292,4.10448812,2436.4,2436.2,12.02966667]
[1747662374489,4.65458482,2436.3,2436.2,0.66666667]
[1747662374690,5.89608482,2436.3,2436.2,0.66666667]
[1747662375357,18.70257489,2436.5,2436.2,0.66666667]
[1747662375555,4.10386479,2436.8,2436.2,0.66666667]
[1747662375887,4.10451136,2436.4,2436.2,0.66666667]
[1747662376102,7.26657489,2436.4,2436.2,0.66666667]
[1747662376258,4.65458482,2436.3,2436.2,0.66666667]
[1747662376989,1.2415,2436.4,2436.2,0.66666667]
[1747662379593,4.65458482,2436.3,2436.2,0.66666667]
[1747662379797,4.10458482,2436.3,2436.2,0.66666667]
[1747662379968,4.10450361,2436.4,2436.2,0.66666667]
[1747662380168,4.65458482,2436.3,2436.2,0.66666667]
[1747662380560,12.7075,2436.7,2436.2,0.66666667]
[1747662380766,0.55,2436.6,2436.2,0.66666667]
[1747662380969,4.10458482,2436.3,2436.2,0.66666667]
[1747662381873,4.65458482,2436.3,2436.2,0.66666667]
[1747662382563,0.55,2436.3,2436.2,0.66666667]
[1747662382812,4.1043062,2436.5,2436.2,0.66666667]
[1747662382813,4.10424082,2436.6,2436.2,0.66666667]
[1747662383106,1.2415,2437.5,2437.0,4.103262]
[1747662383281,4.1026365,2437.5,2437.0,1.5955]
[1747662383594,0.05128632,2437.9,2437.0,1.5955]
[1747662383797,7.26657489,2437.3,2436.3,1.6063]
[1747662384098,24.23726259,2438.0,2436.5,4.10424789]
[1747662384299,4.10121806,2438.3,2437.1,1.6063]
[1747662384464,7.26657489,2438.1,2437.1,1.6063]
[1747662384669,7.26657489,2438.1,2437.1,5.70938267]
[1747662384995,4.10166119,2438.1,2437.4,4.10258509]
[1747662385164,8.50807489,2438.4,2437.1,1.6063]
[1747662385368,4.10215177,2437.8,2437.2,4.10306747]
[1747662385559,4.10215177,2437.8,2437.1,1.6063]
[1747662385560,4.10215177,2437.8,2437.1,5.70949725]
[1747662385763,4.10215177,2437.8,2436.7,4.1038919]
[1747662385764,4.10285244,2437.4,2436.8,4.10373967]
[1747662386006,4.1025641,2437.5,2436.7,5.70403986]
[1747662386190,4.10266205,2437.5,2436.7,7.54198414]
[1747662386511,4.65247673,2437.6,2437.0,4.10338068]
[1747662386814,4.65247673,2437.6,2436.8,4.10368567]
[1747662386993,4.10254818,2437.6,2436.7,3.43811309]
[1747662387197,0.05128235,2437.5,2436.7,1.6002]
[1747662387396,0.55,2437.8,2436.7,5.70410473]
[1747662387397,7.26657489,2437.6,2436.7,5.70410473]
[1747662387692,4.10268585,2437.5,2436.9,4.10354455]
[1747662388206,11.369,2437.4,2436.7,1.6002]
[1747662388498,4.10365145,2436.9,2436.4,1.5406]
[1747662388702,4.10368023,2436.9,2436.4,1.5406]
[1747662388865,4.10377705,2436.8,2436.4,1.5406]
[1747662389069,0.55,2437.2,2436.4,1.5406]
[1747662389070,4.10424789,2436.5,2436.4,1.5406]
[1747662389302,4.10425685,2436.5,2436.2,0.66666667]
[1747662389513,4.10458482,2436.3,2436.2,0.66666667]
[1747662389697,16.04658482,2436.3,2436.2,0.66666667]
[1747662390270,17.719,2436.4,2436.2,0.66666667]
[1747662390611,21.82349634,2436.4,2436.2,0.66666667]
[1747662390809,15.47330431,2436.5,2436.2,0.66666667]
[1747662391019,0.55,2436.3,2436.2,0.66666667]
[1747662391339,4.65458482,2436.3,2436.2,0.66666667]
[1747662391903,4.10458482,2436.3,2436.2,0.66666667]
[1747662392307,4.10425077,2436.5,2436.2,0.66666667]
[1747662392470,0.55,2436.7,2436.3,0.3426436]
[1747662392873,16.11398488,2436.7,2436.3,0.3426436]
[1747662393073,12.01,2436.7,2436.3,0.3426436]
[1747662393384,11.46,2436.7,2436.3,0.3426436]
[1747662393569,11.46,2436.8,2436.3,4.44719184]
[1747662393775,21.82430181,2437.1,2436.5,4.10417732]
[1747662393976,17.721,2437.1,2436.6,4.44667788]
[1747662394202,17.721,2437.1,2436.7,4.44643686]
[1747662394404,8.50807489,2437.6,2436.8,1.6443]
[1747662394405,15.56269574,2437.5,2436.8,1.6443]
[1747662394591,11.46,2437.5,2436.8,1.6443]
[1747662394792,18.72657489,2437.5,2436.8,1.6443]
[1747662394971,4.10334217,2437.1,2436.8,1.6443]
[1747662395189,18.72657489,2437.5,2436.8,1.6443]
[1747662395395,4.10290433,2437.3,2436.8,1.6443]
[1747662395595,4.10290433,2437.3,2436.8,1.98687329]
[1747662396325,4.10213283,2437.8,2436.9,4.10355378]
[1747662396523,4.10233479,2437.7,2437.0,4.10333381]
[1747662396711,4.10233479,2437.7,2437.0,0.13123983]
[1747662396712,4.65224176,2437.7,2437.0,0.13123983]
[1747662397025,4.10273241,2437.4,2437.0,0.13123983]
[1747662397233,11.46,2437.8,2437.2,4.10295956]
[1747662397526,15.56213542,2437.8,2437.0,0.47378501]
[1747662397706,15.56208131,2437.8,2437.1,4.44570627]
[1747662397906,15.56208131,2437.8,2437.2,0.34251707]
[1747662398222,15.56208131,2437.8,2437.3,0.13123983]
[1747662398428,15.56208131,2437.8,2437.4,0.34248896]
[1747662398730,15.56212499,2437.8,2437.4,0.34248896]
[1747662399402,4.6525641,2437.5,2437.4,0.34248896]
[1747662399602,23.24013899,2437.5,2437.4,0.34248896]